[Event "Titled Tuesday Blitz August 16 Late 2022"]
[White "Kostiukov, Alexandr"]
[Black "Zeynalov, Farid"]
[WhiteFideId "14108100"]
[BlackFideId "13402250"]
[WhiteElo "2202"]
[BlackElo "2278"]
[Result "1-0"]
[Round "09"]
[TimeControl "180+1"]
[Date "2022.08.18"]
[WhiteClock "0:00:00"]
[BlackClock "0:00:00"]

1. g3 {[%clk 0:00:00]}  Nf6 {[%clk 0:00:00]} 2. Bg2 {[%clk 0:00:00]}  g6 {[%clk 0:00:00]} 3. c4 {[%clk 0:00:00]}  Bg7 {[%clk 0:00:00]} 4. Nf3 {[%clk 0:00:00]}  O-O {[%clk 0:00:00]} 5. O-O {[%clk 0:00:00]}  d6 {[%clk 0:00:00]} 6. d4 {[%clk 0:00:00]}  Nc6 {[%clk 0:00:00]} 7. Nc3 {[%clk 0:00:00]}  Bf5 {[%clk 0:00:00]} 8. d5 {[%clk 0:00:00]}  Na5 {[%clk 0:00:00]} 9. Nd4 {[%clk 0:00:00]}  Bd7 {[%clk 0:00:00]} 10. b3 {[%clk 0:00:00]}  c5 {[%clk 0:00:00]} 11. dxc6 {[%clk 0:00:00]}  bxc6 {[%clk 0:00:00]} 12. Bb2 {[%clk 0:00:00]}  c5 {[%clk 0:00:00]} 13. Nc2 {[%clk 0:00:00]}  Rb8 {[%clk 0:00:00]} 14. Ne3 {[%clk 0:00:00]}  Nc6 {[%clk 0:00:00]} 15. Qd2 {[%clk 0:00:00]}  Nd4 {[%clk 0:00:00]} 16. Ncd5 {[%clk 0:00:00]}  e5 {[%clk 0:00:00]} 17. Nxf6+ {[%clk 0:00:00]}  Bxf6 {[%clk 0:00:00]} 18. Nd5 {[%clk 0:00:00]}  Bg5 {[%clk 0:00:00]} 19. e3 {[%clk 0:00:00]}  Nf5 {[%clk 0:00:00]} 20. f4 {[%clk 0:00:00]}  Bh6 {[%clk 0:00:00]} 21. fxe5 {[%clk 0:00:00]}  Be6 {[%clk 0:00:00]} 22. Rxf5 {[%clk 0:00:00]}  Bxf5 {[%clk 0:00:00]} 23. exd6 {[%clk 0:00:00]}  Bg7 {[%clk 0:00:00]} 24. Ne7+ {[%clk 0:00:00]}  Kh8 {[%clk 0:00:00]} 25. Bxg7+ {[%clk 0:00:00]}  Kxg7 {[%clk 0:00:00]} 26. Nc6 {[%clk 0:00:00]}  Qf6 {[%clk 0:00:00]} 27. Rd1 {[%clk 0:00:00]}  Rb7 {[%clk 0:00:00]} 28. e4 {[%clk 0:00:00]}  Bg4 {[%clk 0:00:00]} 29. Rf1 {[%clk 0:00:00]}  Qe6 {[%clk 0:00:00]} 30. e5 {[%clk 0:00:00]}  Rd7 {[%clk 0:00:00]} 31. Qf2 {[%clk 0:00:00]}  Bh3 {[%clk 0:00:00]} 32. Qf6+ {[%clk 0:00:00]}  Qxf6 {[%clk 0:00:00]} 33. exf6+ {[%clk 0:00:00]}  Kh6 {[%clk 0:00:00]} 34. Bxh3 {[%clk 0:00:00]}  Rxd6 {[%clk 0:00:00]} 35. Ne5 {[%clk 0:00:00]}  g5 {[%clk 0:00:00]} 36. Bf5 {[%clk 0:00:00]}  Rxf6 {[%clk 0:00:00]} 37. Ng4+ {[%clk 0:00:00]}  Kg7 {[%clk 0:00:00]} 38. Nxf6 {[%clk 0:00:00]}  Kxf6 {[%clk 0:00:00]} 39. Be4+ {[%clk 0:00:00]}  Kg7 {[%clk 0:00:00]} 40. Bd5 {[%clk 0:00:00]}  f5 {[%clk 0:00:00]} 41. Re1 {[%clk 0:00:00]}  f4 {[%clk 0:00:00]} 42. Re7+ {[%clk 0:00:00]}  Kg6 {[%clk 0:00:00]} 43. g4 {[%clk 0:00:00]}  f3 {[%clk 0:00:00]} 44. Kf2 {[%clk 0:00:00]}  Rf4 {[%clk 0:00:00]} 45. h3 {[%clk 0:00:00]}  Rd4 {[%clk 0:00:00]} 46. Rxa7 {[%clk 0:00:00]}  h5 {[%clk 0:00:00]} 47. Kxf3 {[%clk 0:00:00]}  hxg4+ {[%clk 0:00:00]} 48. hxg4 {[%clk 0:00:00]}  Kh6 {[%clk 0:00:00]} 49. Be4 {[%clk 0:00:00]}  Rd7 {[%clk 0:00:00]} 50. Ra6+ {[%clk 0:00:00]}  Kg7 {[%clk 0:00:00]} 51. Bd5 {[%clk 0:00:00]}  Kh7 {[%clk 0:00:00]} 52. Re6 {[%clk 0:00:00]}  Rf7+ {[%clk 0:00:00]} 53. Kg3 {[%clk 0:00:00]}  Rf4 {[%clk 0:00:00]} 54. Re5 {[%clk 0:00:00]}  Kh6 {[%clk 0:00:00]} 55. Rf5 {[%clk 0:00:00]}  Rd4 {[%clk 0:00:00]} 56. Rf6+ {[%clk 0:00:00]}  Kg7 {[%clk 0:00:00]} 57. Rf7+ {[%clk 0:00:00]}  Kh6 {[%clk 0:00:00]} 58. Rf2 {[%clk 0:00:00]}  Rd3+ {[%clk 0:00:00]} 59. Kg2 {[%clk 0:00:00]}  Rd4 {[%clk 0:00:00]} 60. Re2 {[%clk 0:00:00]}  Rxg4+ {[%clk 0:00:00]} 61. Kf3 {[%clk 0:00:00]}  Rd4 {[%clk 0:00:00]} 62. Kg3 {[%clk 0:00:00]}  g4 {[%clk 0:00:00]} 63. Rc2 {[%clk 0:00:00]}  Kh5 {[%clk 0:00:00]} 64. a4 {[%clk 0:00:00]}  Rd3+ {[%clk 0:00:00]} 65. Kg2 {[%clk 0:00:00]}  Rxb3 {[%clk 0:00:00]} 66. Ra2 {[%clk 0:00:00]}  Kh4 {[%clk 0:00:00]} 67. a5 {[%clk 0:00:00]}  Rg3+ {[%clk 0:00:00]} 68. Kh2 {[%clk 0:00:00]}  Rh3+ {[%clk 0:00:00]} 69. Kg1 {[%clk 0:00:00]}  Rg3+ {[%clk 0:00:00]} 70. Bg2 {[%clk 0:00:00]}  Rc3 {[%clk 0:00:00]} 71. a6 {[%clk 0:00:00]}  Kg3 {[%clk 0:00:00]} 72. a7 {[%clk 0:00:00]}  Rc1+ {[%clk 0:00:00]} 73. Bf1 {[%clk 0:00:00]}  Re1 {[%clk 0:00:00]} 74. a8=Q {[%clk 0:00:00]}  Re5 {[%clk 0:00:00]} 75. Qg2+ {[%clk 0:00:00]}  Kf4 {[%clk 0:00:00]} 76. Qf2+ {[%clk 0:00:00]}  Kg5 {[%clk 0:00:00]} 77. Re2 {[%clk 0:00:00]}  Rf5 {[%clk 0:00:00]} 78. Qe3+ {[%clk 0:00:00]}  Kh4 {[%clk 0:00:00]} 79. Rh2# {[%clk 0:00:00]} 1-0


[Site "https://www.chess.com"]

[Event "Titled Tuesday Blitz August 16 Late 2022"]
[White "Kovacevic, Radmila"]
[Black "Capp, Stephen"]
[WhiteFideId "933171"]
[BlackFideId "2027089"]
[WhiteElo "2157"]
[BlackElo "1920"]
[Result "1-0"]
[Round "09"]
[TimeControl "180+1"]
[Date "2022.08.18"]
[WhiteClock "0:00:00"]
[BlackClock "0:00:00"]

1. d4 {[%clk 0:00:00]}  Nf6 {[%clk 0:00:00]} 2. Nf3 {[%clk 0:00:00]}  d5 {[%clk 0:00:00]} 3. g3 {[%clk 0:00:00]}  Bf5 {[%clk 0:00:00]} 4. Bg2 {[%clk 0:00:00]}  e6 {[%clk 0:00:00]} 5. O-O {[%clk 0:00:00]}  Be7 {[%clk 0:00:00]} 6. Nh4 {[%clk 0:00:00]}  Bg6 {[%clk 0:00:00]} 7. Nd2 {[%clk 0:00:00]}  O-O {[%clk 0:00:00]} 8. Nxg6 {[%clk 0:00:00]}  hxg6 {[%clk 0:00:00]} 9. e4 {[%clk 0:00:00]}  c6 {[%clk 0:00:00]} 10. e5 {[%clk 0:00:00]}  Nfd7 {[%clk 0:00:00]} 11. c3 {[%clk 0:00:00]}  c5 {[%clk 0:00:00]} 12. Nf3 {[%clk 0:00:00]}  Nc6 {[%clk 0:00:00]} 13. Re1 {[%clk 0:00:00]}  cxd4 {[%clk 0:00:00]} 14. cxd4 {[%clk 0:00:00]}  Qb6 {[%clk 0:00:00]} 15. h4 {[%clk 0:00:00]}  Rac8 {[%clk 0:00:00]} 16. Be3 {[%clk 0:00:00]}  Nb4 {[%clk 0:00:00]} 17. Re2 {[%clk 0:00:00]}  Rc7 {[%clk 0:00:00]} 18. a3 {[%clk 0:00:00]}  Nc6 {[%clk 0:00:00]} 19. Rc1 {[%clk 0:00:00]}  a5 {[%clk 0:00:00]} 20. Kh2 {[%clk 0:00:00]}  Rfc8 {[%clk 0:00:00]} 21. Rec2 {[%clk 0:00:00]}  a4 {[%clk 0:00:00]} 22. Re2 {[%clk 0:00:00]}  Qa6 {[%clk 0:00:00]} 23. Bf1 {[%clk 0:00:00]}  Qa7 {[%clk 0:00:00]} 24. Rec2 {[%clk 0:00:00]}  Nb6 {[%clk 0:00:00]} 25. h5 {[%clk 0:00:00]}  gxh5 {[%clk 0:00:00]} 26. Ng5 {[%clk 0:00:00]}  Bxg5 {[%clk 0:00:00]} 27. Bxg5 {[%clk 0:00:00]}  Nc4 {[%clk 0:00:00]} 28. Bxc4 {[%clk 0:00:00]}  dxc4 {[%clk 0:00:00]} 29. Rxc4 {[%clk 0:00:00]}  b5 {[%clk 0:00:00]} 30. Rc5 {[%clk 0:00:00]}  g6 {[%clk 0:00:00]} 31. Bf6 {[%clk 0:00:00]}  Qb7 {[%clk 0:00:00]} 32. d5 {[%clk 0:00:00]}  exd5 {[%clk 0:00:00]} 33. Qxd5 {[%clk 0:00:00]}  Ne7 {[%clk 0:00:00]} 34. Qxb7 {[%clk 0:00:00]}  Rxc5 {[%clk 0:00:00]} 35. Rxc5 {[%clk 0:00:00]}  Rxc5 {[%clk 0:00:00]} 36. Bxe7 {[%clk 0:00:00]}  Rxe5 {[%clk 0:00:00]} 37. Qb8+ {[%clk 0:00:00]}  Kh7 {[%clk 0:00:00]} 38. Qxe5 {[%clk 0:00:00]}  Kh6 {[%clk 0:00:00]} 39. Bf8+ {[%clk 0:00:00]}  Kh7 {[%clk 0:00:00]} 40. Qg7# {[%clk 0:00:00]} 1-0


[Site "https://www.chess.com"]

[Event "Titled Tuesday Blitz August 16 Late 2022"]
[White "Martic, Ivan"]
[Black "Zivkovic, Nemanja"]
[WhiteFideId "929301"]
[BlackFideId "942154"]
[WhiteElo "2355"]
[BlackElo "2372"]
[Result "0-1"]
[Round "09"]
[TimeControl "180+1"]
[Date "2022.08.16"]
[WhiteClock "0:00:14"]
[BlackClock "0:00:25"]

1. d4 {[%clk 0:02:59]}  Nf6 {[%clk 0:02:59]} 2. Nf3 {[%clk 0:02:59]}  e6 {[%clk 0:02:59]} 3. c4 {[%clk 0:02:56]}  a6 {[%clk 0:02:53]} 4. Nc3 {[%clk 0:02:45]}  d5 {[%clk 0:02:45]} 5. cxd5 {[%clk 0:02:43]}  exd5 {[%clk 0:02:46]} 6. Bf4 {[%clk 0:02:39]}  Be6 {[%clk 0:02:33]} 7. e3 {[%clk 0:02:39]}  c6 {[%clk 0:02:34]} 8. Bd3 {[%clk 0:02:37]}  Nbd7 {[%clk 0:02:34]} 9. O-O {[%clk 0:02:36]}  Be7 {[%clk 0:02:34]} 10. h3 {[%clk 0:02:35]}  O-O {[%clk 0:02:34]} 11. a3 {[%clk 0:02:25]}  Re8 {[%clk 0:02:33]} 12. b4 {[%clk 0:02:23]}  b5 {[%clk 0:02:31]} 13. Qc2 {[%clk 0:02:10]}  Nb6 {[%clk 0:02:29]} 14. Ng5 {[%clk 0:02:06]}  h6 {[%clk 0:02:16]} 15. Nxe6 {[%clk 0:02:03]}  fxe6 {[%clk 0:02:17]} 16. Qe2 {[%clk 0:01:52]}  Bd6 {[%clk 0:02:14]} 17. Bxd6 {[%clk 0:01:48]}  Qxd6 {[%clk 0:02:14]} 18. f4 {[%clk 0:01:47]}  a5 {[%clk 0:02:07]} 19. Rab1 {[%clk 0:01:39]}  axb4 {[%clk 0:02:04]} 20. axb4 {[%clk 0:01:40]}  Ra3 {[%clk 0:02:04]} 21. Nd1 {[%clk 0:01:38]}  Nc4 {[%clk 0:02:01]} 22. g4 {[%clk 0:01:36]}  Rea8 {[%clk 0:01:58]} 23. Nf2 {[%clk 0:01:26]}  Ra2 {[%clk 0:01:51]} 24. Qf3 {[%clk 0:01:13]}  Nd2 {[%clk 0:01:50]} 25. Qg3 {[%clk 0:01:12]}  Nxb1 {[%clk 0:01:35]} 26. Bxb1 {[%clk 0:01:13]}  Re2 {[%clk 0:01:21]} 27. g5 {[%clk 0:01:12]}  hxg5 {[%clk 0:01:21]} 28. Qxg5 {[%clk 0:01:11]}  Ra3 {[%clk 0:01:15]} 29. Kh1 {[%clk 0:01:01]}  Raxe3 {[%clk 0:00:56]} 30. Rg1 {[%clk 0:00:58]}  Qe7 {[%clk 0:00:56]} 31. Qh4 {[%clk 0:00:42]}  Re1 {[%clk 0:00:50]} 32. Bh7+ {[%clk 0:00:35]}  Kf8 {[%clk 0:00:47]} 33. Bg6 {[%clk 0:00:34]}  Rxg1+ {[%clk 0:00:40]} 34. Kxg1 {[%clk 0:00:35]}  Ng8 {[%clk 0:00:40]} 35. Qh5 {[%clk 0:00:23]}  Qf6 {[%clk 0:00:32]} 36. Ng4 {[%clk 0:00:19]}  Qxd4 {[%clk 0:00:30]} 37. Nxe3 {[%clk 0:00:18]}  Qxe3+ {[%clk 0:00:31]} 38. Kg2 {[%clk 0:00:18]}  Qxf4 {[%clk 0:00:29]} 39. Bb1 {[%clk 0:00:14]}  Qd2+ {[%clk 0:00:26]} 40. Kg3 {[%clk 0:00:14]}  Qc3+ {[%clk 0:00:25]} 41. Kh2 {[%clk 0:00:14]}  Qb2+ {[%clk 0:00:25]} 0-1


[Site "https://www.chess.com"]

[Event "Titled Tuesday Blitz August 16 Late 2022"]
[White "Melikyan, Gnel"]
[Black "Sokolovsky, Yahli"]
[WhiteFideId "54109990"]
[BlackFideId "2820242"]
[WhiteElo "1772"]
[BlackElo "1867"]
[Result "0-1"]
[Round "09"]
[TimeControl "180+1"]
[Date "2022.08.16"]
[WhiteClock "0:00:34"]
[BlackClock "0:00:08"]

1. e4 {[%clk 0:02:56]}  g6 {[%clk 0:03:00]} 2. d4 {[%clk 0:02:56]}  Bg7 {[%clk 0:03:00]} 3. Nc3 {[%clk 0:02:56]}  d6 {[%clk 0:03:01]} 4. Be3 {[%clk 0:02:57]}  a6 {[%clk 0:03:01]} 5. a4 {[%clk 0:02:57]}  b6 {[%clk 0:03:01]} 6. f3 {[%clk 0:02:57]}  Bb7 {[%clk 0:03:02]} 7. Bc4 {[%clk 0:02:58]}  e6 {[%clk 0:03:01]} 8. Bb3 {[%clk 0:02:57]}  Nf6 {[%clk 0:03:00]} 9. Nge2 {[%clk 0:02:54]}  d5 {[%clk 0:02:59]} 10. exd5 {[%clk 0:02:51]}  exd5 {[%clk 0:02:58]} 11. Qd2 {[%clk 0:02:51]}  O-O {[%clk 0:02:58]} 12. Bh6 {[%clk 0:02:51]}  c5 {[%clk 0:02:49]} 13. Bxg7 {[%clk 0:02:50]}  Kxg7 {[%clk 0:02:49]} 14. O-O {[%clk 0:02:43]}  c4 {[%clk 0:02:30]} 15. Ba2 {[%clk 0:02:43]}  Bc6 {[%clk 0:02:19]} 16. Bb1 {[%clk 0:02:38]}  Nbd7 {[%clk 0:02:12]} 17. Nd1 {[%clk 0:02:37]}  Re8 {[%clk 0:01:33]} 18. c3 {[%clk 0:02:35]}  a5 {[%clk 0:01:33]} 19. Bc2 {[%clk 0:02:30]}  Nh5 {[%clk 0:01:30]} 20. Re1 {[%clk 0:02:22]}  Re6 {[%clk 0:01:20]} 21. Nf2 {[%clk 0:02:19]}  Qe7 {[%clk 0:01:18]} 22. Ng3 {[%clk 0:02:09]}  Nxg3 {[%clk 0:01:15]} 23. Rxe6 {[%clk 0:02:04]}  Qxe6 {[%clk 0:01:15]} 24. hxg3 {[%clk 0:02:04]}  Re8 {[%clk 0:01:16]} 25. Kf1 {[%clk 0:02:02]}  Nf6 {[%clk 0:01:12]} 26. Nh3 {[%clk 0:01:56]}  Nh5 {[%clk 0:01:08]} 27. Kf2 {[%clk 0:01:53]}  Qd7 {[%clk 0:00:52]} 28. Nf4 {[%clk 0:01:48]}  Nxf4 {[%clk 0:00:50]} 29. Qxf4 {[%clk 0:01:48]}  Qe7 {[%clk 0:00:48]} 30. Qd2 {[%clk 0:01:46]}  f5 {[%clk 0:00:45]} 31. b3 {[%clk 0:01:44]}  Qd7 {[%clk 0:00:27]} 32. bxc4 {[%clk 0:01:33]}  dxc4 {[%clk 0:00:28]} 33. Qf4 {[%clk 0:01:27]}  Qe7 {[%clk 0:00:26]} 34. Qd2 {[%clk 0:01:26]}  Qd7 {[%clk 0:00:26]} 35. Bd1 {[%clk 0:01:21]}  Re6 {[%clk 0:00:22]} 36. Qa2 {[%clk 0:01:08]}  Bd5 {[%clk 0:00:21]} 37. Be2 {[%clk 0:01:06]}  Qe7 {[%clk 0:00:21]} 38. Bxc4 {[%clk 0:01:02]}  Bxc4 {[%clk 0:00:07]} 39. Qxc4 {[%clk 0:01:03]}  Re3 {[%clk 0:00:07]} 40. Rd1 {[%clk 0:00:56]}  h5 {[%clk 0:00:07]} 41. d5 {[%clk 0:00:49]}  Qe5 {[%clk 0:00:07]} 42. Qd4 {[%clk 0:00:47]}  Qxd4 {[%clk 0:00:07]} 43. Rxd4 {[%clk 0:00:46]}  Rxc3 {[%clk 0:00:08]} 44. d6 {[%clk 0:00:46]}  Rc8 {[%clk 0:00:08]} 45. d7 {[%clk 0:00:46]}  Rd8 {[%clk 0:00:09]} 46. Rd6 {[%clk 0:00:47]}  Kf7 {[%clk 0:00:10]} 47. Ke3 {[%clk 0:00:46]}  g5 {[%clk 0:00:08]} 48. Rxb6 {[%clk 0:00:40]}  Rxd7 {[%clk 0:00:08]} 49. Rb5 {[%clk 0:00:41]}  Re7+ {[%clk 0:00:06]} 50. Kf2 {[%clk 0:00:41]}  Kf6 {[%clk 0:00:06]} 51. Rxa5 {[%clk 0:00:42]}  Rc7 {[%clk 0:00:07]} 52. Ra6+ {[%clk 0:00:42]}  Ke5 {[%clk 0:00:07]} 53. Ra5+ {[%clk 0:00:42]}  Ke6 {[%clk 0:00:07]} 54. Rb5 {[%clk 0:00:43]}  Rc2+ {[%clk 0:00:07]} 55. Kg1 {[%clk 0:00:43]}  Ra2 {[%clk 0:00:07]} 56. a5 {[%clk 0:00:43]}  h4 {[%clk 0:00:07]} 57. Kh2 {[%clk 0:00:41]}  Kf6 {[%clk 0:00:06]} 58. gxh4 {[%clk 0:00:41]}  gxh4 {[%clk 0:00:07]} 59. Kh3 {[%clk 0:00:42]}  Kg5 {[%clk 0:00:07]} 60. Rc5 {[%clk 0:00:39]}  Ra1 {[%clk 0:00:08]} 61. Rb5 {[%clk 0:00:34]}  Rh1# {[%clk 0:00:08]} 0-1


[Site "https://www.chess.com"]

[Event "Titled Tuesday Blitz August 16 Late 2022"]
[White "Nakamura, Hikaru"]
[Black "Paravyan, David"]
[WhiteFideId "2016192"]
[BlackFideId "4194985"]
[WhiteElo "2850"]
[BlackElo "2569"]
[Result "1-0"]
[Round "09"]
[TimeControl "180+1"]
[Date "2022.08.16"]
[WhiteClock "0:00:18"]
[BlackClock "0:00:02"]

1. g3 {[%clk 0:02:49]}  Nf6 {[%clk 0:02:50]} 2. Bg2 {[%clk 0:02:49]}  e5 {[%clk 0:02:50]} 3. d3 {[%clk 0:02:45]}  d5 {[%clk 0:02:50]} 4. Nf3 {[%clk 0:02:44]}  Nc6 {[%clk 0:02:49]} 5. Bg5 {[%clk 0:02:44]}  Be6 {[%clk 0:02:48]} 6. Nc3 {[%clk 0:02:44]}  h6 {[%clk 0:02:48]} 7. Bxf6 {[%clk 0:02:44]}  Qxf6 {[%clk 0:02:49]} 8. e4 {[%clk 0:02:44]}  d4 {[%clk 0:02:49]} 9. Nd5 {[%clk 0:02:45]}  Qd8 {[%clk 0:02:48]} 10. O-O {[%clk 0:02:43]}  Be7 {[%clk 0:02:48]} 11. c3 {[%clk 0:02:22]}  dxc3 {[%clk 0:02:47]} 12. bxc3 {[%clk 0:02:23]}  O-O {[%clk 0:02:41]} 13. Rb1 {[%clk 0:02:08]}  Rb8 {[%clk 0:02:38]} 14. Re1 {[%clk 0:01:58]}  Re8 {[%clk 0:02:35]} 15. Qa4 {[%clk 0:01:55]}  Bf8 {[%clk 0:02:13]} 16. Nd2 {[%clk 0:01:50]}  Ne7 {[%clk 0:02:09]} 17. Nxe7+ {[%clk 0:01:42]}  Rxe7 {[%clk 0:02:05]} 18. Qxa7 {[%clk 0:01:24]}  Rd7 {[%clk 0:02:00]} 19. Bf1 {[%clk 0:01:19]}  b6 {[%clk 0:01:56]} 20. Qa4 {[%clk 0:01:05]}  Ra8 {[%clk 0:01:54]} 21. Qc2 {[%clk 0:01:05]}  Rxa2 {[%clk 0:01:54]} 22. Rb2 {[%clk 0:01:06]}  Ra3 {[%clk 0:01:49]} 23. Nf3 {[%clk 0:01:04]}  Qf6 {[%clk 0:01:49]} 24. Bg2 {[%clk 0:00:56]}  Bc5 {[%clk 0:01:48]} 25. h3 {[%clk 0:00:56]}  Bxh3 {[%clk 0:01:43]} 26. Bxh3 {[%clk 0:00:56]}  Qxf3 {[%clk 0:01:27]} 27. Bxd7 {[%clk 0:00:57]}  Qxg3+ {[%clk 0:01:09]} 28. Kf1 {[%clk 0:00:57]}  Qf3 {[%clk 0:01:03]} 29. Qd1 {[%clk 0:00:52]}  Qh1+ {[%clk 0:00:39]} 30. Ke2 {[%clk 0:00:52]}  Qh2 {[%clk 0:00:25]} 31. Kd2 {[%clk 0:00:49]}  Qxf2+ {[%clk 0:00:18]} 32. Qe2 {[%clk 0:00:41]}  Qf6 {[%clk 0:00:16]} 33. Rf1 {[%clk 0:00:36]}  Qd6 {[%clk 0:00:12]} 34. Bb5 {[%clk 0:00:36]}  Bd4 {[%clk 0:00:03]} 35. cxd4 {[%clk 0:00:30]}  Qxd4 {[%clk 0:00:04]} 36. Rfb1 {[%clk 0:00:25]}  c6 {[%clk 0:00:01]} 37. Bc4 {[%clk 0:00:24]}  Qc3+ {[%clk 0:00:02]} 38. Kd1 {[%clk 0:00:24]}  b5 {[%clk 0:00:02]} 39. Rb3 {[%clk 0:00:21]}  Rxb3 {[%clk 0:00:02]} 40. Bxb3 {[%clk 0:00:22]}  c5 {[%clk 0:00:02]} 41. Bd5 {[%clk 0:00:20]}  Qd4 {[%clk 0:00:01]} 42. Qf3 {[%clk 0:00:19]}  Kh7 {[%clk 0:00:01]} 43. Qf5+ {[%clk 0:00:19]}  Kh8 {[%clk 0:00:02]} 44. Ke2 {[%clk 0:00:18]} 1-0


[Site "https://www.chess.com"]

[Event "Titled Tuesday Blitz August 16 Late 2022"]
[White "Oro, Luis"]
[Black "Leitao, Rafael"]
[WhiteFideId "104094"]
[BlackFideId "2101246"]
[WhiteElo "2255"]
[BlackElo "2609"]
[Result "1/2-1/2"]
[Round "09"]
[TimeControl "180+1"]
[Date "2022.08.18"]
[WhiteClock "0:00:00"]
[BlackClock "0:00:00"]

1. e4 {[%clk 0:00:00]}  c5 {[%clk 0:00:00]} 2. Nf3 {[%clk 0:00:00]}  d6 {[%clk 0:00:00]} 3. d4 {[%clk 0:00:00]}  cxd4 {[%clk 0:00:00]} 4. Nxd4 {[%clk 0:00:00]}  Nf6 {[%clk 0:00:00]} 5. Nc3 {[%clk 0:00:00]}  Nc6 {[%clk 0:00:00]} 6. f3 {[%clk 0:00:00]}  e5 {[%clk 0:00:00]} 7. Nb3 {[%clk 0:00:00]}  Be6 {[%clk 0:00:00]} 8. Be3 {[%clk 0:00:00]}  d5 {[%clk 0:00:00]} 9. exd5 {[%clk 0:00:00]}  Nxd5 {[%clk 0:00:00]} 10. Nxd5 {[%clk 0:00:00]}  Qxd5 {[%clk 0:00:00]} 11. Qxd5 {[%clk 0:00:00]}  Bxd5 {[%clk 0:00:00]} 12. O-O-O {[%clk 0:00:00]}  O-O-O {[%clk 0:00:00]} 13. Bb5 {[%clk 0:00:00]}  a6 {[%clk 0:00:00]} 14. Be2 {[%clk 0:00:00]}  Be7 {[%clk 0:00:00]} 15. Bb6 {[%clk 0:00:00]}  Rd7 {[%clk 0:00:00]} 16. Nc5 {[%clk 0:00:00]}  Bxc5 {[%clk 0:00:00]} 17. Bxc5 {[%clk 0:00:00]}  Kc7 {[%clk 0:00:00]} 18. a3 {[%clk 0:00:00]}  Rhd8 {[%clk 0:00:00]} 19. Rd2 {[%clk 0:00:00]}  e4 {[%clk 0:00:00]} 20. f4 {[%clk 0:00:00]}  Be6 {[%clk 0:00:00]} 21. Rhd1 {[%clk 0:00:00]}  Rxd2 {[%clk 0:00:00]} 22. Rxd2 {[%clk 0:00:00]}  f5 {[%clk 0:00:00]} 23. b4 {[%clk 0:00:00]}  b5 {[%clk 0:00:00]} 24. Rxd8 {[%clk 0:00:00]}  Nxd8 {[%clk 0:00:00]} 25. Kd2 {[%clk 0:00:00]}  Nb7 {[%clk 0:00:00]} 26. Bf8 {[%clk 0:00:00]}  g6 {[%clk 0:00:00]} 27. Ke3 {[%clk 0:00:00]}  Nd6 {[%clk 0:00:00]} 28. Kd4 {[%clk 0:00:00]}  Nc4 {[%clk 0:00:00]} 29. Bxc4 {[%clk 0:00:00]}  Bxc4 {[%clk 0:00:00]} 30. Bc5 {[%clk 0:00:00]}  Kc6 {[%clk 0:00:00]} 31. g3 {[%clk 0:00:00]}  Ba2 {[%clk 0:00:00]} 32. c3 {[%clk 0:00:00]}  Bc4 {[%clk 0:00:00]} 33. Bf8 {[%clk 0:00:00]}  Kd7 {[%clk 0:00:00]} 34. Bc5 {[%clk 0:00:00]}  Ke6 {[%clk 0:00:00]} 35. Bb6 {[%clk 0:00:00]}  h6 {[%clk 0:00:00]} 36. Bc5 {[%clk 0:00:00]}  g5 {[%clk 0:00:00]} 37. Bb6 {[%clk 0:00:00]}  gxf4 {[%clk 0:00:00]} 38. gxf4 {[%clk 0:00:00]}  Kf6 {[%clk 0:00:00]} 39. Bd8+ {[%clk 0:00:00]}  Ke6 {[%clk 0:00:00]} 40. Bc7 {[%clk 0:00:00]}  Kd7 {[%clk 0:00:00]} 41. Be5 {[%clk 0:00:00]}  Kc6 {[%clk 0:00:00]} 42. h4 {[%clk 0:00:00]}  h5 {[%clk 0:00:00]} 43. Bf6 {[%clk 0:00:00]}  Kd6 {[%clk 0:00:00]} 44. Be5+ {[%clk 0:00:00]}  Kc6 {[%clk 0:00:00]} 45. Bg7 {[%clk 0:00:00]}  Kd6 {[%clk 0:00:00]} 46. Be5+ {[%clk 0:00:00]}  Kc6 {[%clk 0:00:00]} 1/2-1/2


[Site "https://www.chess.com"]